[Event "Kvika Banki League Iceland 2022-23"]
[Site "Reykjavik"]
[Date "2022.10.15"]
[Round "3.22"]
[White "Gunnarsson, Jon Viktor"]
[Black "Einarsson, Halldor Gretar"]
[Result "1-0"]
[ECO "D00"]
[WhiteElo "2447"]
[BlackElo "2226"]
[Annotator "TA"]
[PlyCount "55"]
[EventDate "2022.10.13"]
[EventType "team-tourn"]
[EventCountry "ISL"]
[SourceTitle "playchess.com"]
[Source "ChessBase"]
[SourceQuality "1"]
[TimeControl "5400+30"]

{[%evp 12,55,0,0,15,14,35,35,43,59,48,48,118,81,77,73,92,70,238,268,268,264,262,260,271,262,256,250,435,371,412,410,411,403,404,387,368,289,284,266,268,262,611,613,672,587]} 1. d4 {[%emt 0:05:08]} Nf6 {[%emt 0:00:08]} 2. Nc3 {[%emt 0:00:05]} d5 {[%emt 0:01:08]} 3. Bf4 {[%emt 0:00:06]} g6 {[%emt 0:00:30]} 4. Nf3 {[%emt 0:01:52]} Bg7 {[%emt 0:00:46]} 5. e3 {[%emt 0:00:56]} c6 {[%emt 0:02:01]} 6. h3 {[%emt 0:03:37]} O-O {[%emt 0:09:06]} 7. Be2 {[%emt 0:02:13] is now debated instead of 7.Bd3.} Qb6 {[%emt 0:07:43] D00: 1 d4 d5: Unusual lines.} 8. Rb1 {[%emt 0:09:02] [#]} Re8 $146 {[%emt 0:10:10]} ({Predecessor:} 8... Nbd7 9. O-O Re8 10. Bh2 Nf8 11. b4 Bf5 12. Nd2 N6d7 13. Na4 Qd8 14. Nc5 Nxc5 15. bxc5 {½-½ (37) Aronian,L (2781)-Nepomniachtchi,I (2784) chess24.com INT 2020}) 9. O-O {[%emt 0:08:24]} Nfd7 {[%emt 0:05:33] White is slightly better.} 10. e4 {[%emt 0:12:11]} dxe4 {[%emt 0:01:47]} 11. Nxe4 {[%emt 0:00:05]} Qa5 {[%emt 0:00:26]} (11... Nf6 $14 12. Nxf6+ exf6) 12. Bd2 {[%emt 0:04:12] White is more active.} Qc7 {[%emt 0:01:45]} 13. Bc4 {[%emt 0:06:58]} Nb6 {[%emt 0:12:15]} 14. Bb3 {[%emt 0:00:43]} N8d7 $2 {[%emt 0:06:42] [#] A mistake that costs the game.} (14... a5 $14) 15. Bxf7+ $1 $18 {[%emt 0:04:45][%mdl 512]} Kxf7 {[%emt 0:00:06] [#]} 16. Nfg5+ $1 {[%emt 0:00:04][%cal Bf3g5,Bg5e6,Be6c5][%mdl 32]} Kg8 {[%emt 0:00:15] ...Nf6 is the strong threat.} 17. Ne6 {[%emt 0:00:07]} (17. Qf3 $2 Nf6 18. Qb3+ (18. Bf4 $2 Qd8 $19) 18... Nbd5 $19) 17... Qb8 {[%emt 0:00:18][%cal Og7d4]} 18. Bf4 {[%emt 0:00:05]} Be5 {[%emt 0:01:34]} 19. dxe5 {[%emt 0:02:26]} Nxe5 $2 {[%emt 0:01:38]} (19... Nd5 {was called for.} 20. Bg3 Nf8) 20. N6c5 {[%emt 0:07:02]} Bf5 {[%emt 0:13:37]} 21. Qe2 {[%emt 0:06:17] Hoping for Ng3.} Rf8 {[%emt 0:10:22]} 22. Nd2 {[%emt 0:05:19]} Qd6 {[%emt 0:09:13]} 23. Nxb7 {[%emt 0:02:23]} (23. Bxe5 Qxc5 24. Rbc1 Nd7 $16) 23... Qb4 {[%emt 0:00:45]} 24. Qxe5 {[%emt 0:06:39]} Nd7 {[%emt 0:00:41] Inhibits Nc5.} 25. Qe3 {[%emt 0:02:19]} ({Less strong is} 25. Qc7 Rac8 26. a3 Rxc7 27. axb4 Rxb7 $16) 25... Qxb7 {[%emt 0:01:54]} 26. Bh6 {[%emt 0:00:40]} ({Don't play} 26. Qxe7 $6 Rae8 27. Qd6 Rf6 $16) 26... Rfe8 $2 {[%emt 0:00:40]} (26... Rf7 27. Nf3 e5) 27. g4 {[%emt 0:00:41]} Bxc2 {[%emt 0:00:25]} 28. Qc3 {[%emt 0:00:08] Weighted Error Value: White=0.12 (very precise) /Black=0.56} 1-0

[Event "Kvika Banki League Iceland 2022-23"]
[Site "Reykjavik"]
[Date "2022.10.15"]
[Round "3.23"]
[White "Ornolfsson, Magnus P."]
[Black "Kjartansson, David"]
[Result "1-0"]
[ECO "B33"]
[WhiteElo "2154"]
[BlackElo "2316"]
[Annotator "TA"]
[PlyCount "75"]
[EventDate "2022.10.13"]
[EventType "team-tourn"]
[EventCountry "ISL"]
[SourceTitle "playchess.com"]
[Source "ChessBase"]
[SourceQuality "1"]
[TimeControl "5400+30"]

{[%evp 19,75,12,40,0,15,18,0,0,11,-6,-9,-36,-19,-21,16,19,18,15,50,56,49,-15,-10,-96,-86,-156,-157,-134,-112,-198,-85,-96,0,0,0,0,22,10,30,0,0,0,162,162,166,0,1335,1363,1404,1221,1767,1516,1595,1515,1729,1684,1487,1397]} 1. e4 {[%emt 0:00:15]} c5 {[%emt 0:00:15]} 2. Nf3 {[%emt 0:00:08]} Nc6 {[%emt 0:00:13]} 3. d4 {[%emt 0:00:07]} cxd4 {[%emt 0:00:08]} 4. Nxd4 {[%emt 0:00:03]} Nf6 {[%emt 0:00:22]} 5. Nc3 {[%emt 0:00:26]} Qb6 {[%emt 0:00:49]} 6. Nb3 {[%emt 0:02:23]} e6 {[%emt 0:00:12]} 7. Be3 {[%emt 0:04:24]} Qc7 {[%emt 0:00:08]} 8. a3 {[%emt 0:04:51]} a6 {[%emt 0:00:20]} 9. f4 {[%emt 0:04:15]} d6 {[%emt 0:00:15]} 10. Be2 {[%emt 0:05:34]} b5 {[%emt 0:04:02]} 11. Bf3 {[%emt 0:01:44] B33: Sicilian: Pelikan and Sveshnikov Variations.} Rb8 {[%emt 0:01:02]} 12. O-O {[%emt 0:07:18][%cal Oe4e5]} Be7 {[%emt 0:00:26]} 13. Qe2 {[%emt 0:04:07] [#] The position is equal.} Nd7 $146 {[%emt 0:00:36]} ({Predecessor:} 13... O-O 14. g4 Nd7 15. g5 Re8 16. h4 Bf8 17. Qg2 Nb6 18. Rae1 Nc4 19. Bc1 a5 {0-1 (36) Ivic,M (2267)-Kurajica,B (2527) Bol 2015}) 14. Rad1 {[%emt 0:02:38]} Nb6 {[%emt 0:01:38]} 15. Bxb6 {[%emt 0:01:06]} Qxb6+ {[%emt 0:00:21]} 16. Kh1 {[%emt 0:00:12]} O-O {[%emt 0:15:57] [#]} 17. Nd5 $1 {[%emt 0:08:01]} exd5 {[%emt 0:00:58]} 18. exd5 {[%emt 0:00:07]} Bf6 {[%emt 0:01:25] Strongly threatening ...Na5.} 19. dxc6 {[%emt 0:00:07]} Bxb2 {[%emt 0:01:18]} 20. Be4 {[%emt 0:25:52]} ({Much weaker is} 20. Rxd6 Bxa3 21. Rdd1 Be6 $11) (20. Qd3 $14) 20... Be6 $11 {[%emt 0:13:30] And now ...Bc4 would win.} 21. Qh5 {[%emt 0:05:54]} (21. Nd2 $11 {remains equal.}) 21... g6 $36 {[%emt 0:01:11][%mdl 2048] Keeping White busy.} 22. Qh6 {[%emt 0:01:24]} (22. Qf3 $142) 22... Bg7 {[%emt 0:03:22] A strong pair of Bishops.} (22... Bxa3 $2 23. f5 Bb2 24. fxe6 fxe6 25. c3 Bxc3 26. Qh3 $18) 23. Qg5 {[%emt 0:01:34]} Bc4 {[%emt 0:07:08]} 24. f5 {[%emt 0:06:21]} (24. Rfe1 $17) 24... Rbe8 {[%emt 0:03:00]} (24... Bxf1 $19 {has better winning chances.} 25. Rxf1 Rbe8) 25. Bd3 {[%emt 0:03:57]} Re5 {[%emt 0:07:49]} ({But not} 25... Qxc6 $6 26. f6 Re5 27. Nd4 $11) (25... Be5 $17 26. Qh6 Bf6) 26. Bxc4 $11 {[%emt 0:01:14]} bxc4 {[%emt 0:00:23]} 27. Nd4 {[%emt 0:00:16]} Rfe8 {[%emt 0:07:47]} 28. c3 {[%emt 0:01:31]} Qc5 {[%emt 0:12:44]} 29. Qf4 {[%emt 0:05:33]} Re4 {[%emt 0:00:46]} 30. Qf2 {[%emt 0:00:52]} g5 {[%emt 0:04:15]} (30... Bxd4 $11 {and Black has nothing to worry.} 31. Rxd4 Re2) 31. f6 $18 {[%emt 0:01:59]} Rf4 {[%emt 0:00:35] [#]} 32. Rde1 $2 {[%emt 0:00:58]} (32. Qg3 $1 $18 Rxf6 33. Qg4 Rxf1+ 34. Rxf1 Bxd4 35. Qd7) 32... Re5 $2 {[%emt 0:02:28][%mdl 8192]} (32... Rxe1 $11 33. Qxe1 Bxf6 34. Rxf4 gxf4) 33. Qb2 {[%emt 0:00:23] White is clearly winning.} Bf8 {[%emt 0:08:01]} 34. Qb8 {[%emt 0:00:07] Threatens to win with c7.} Rxe1 {[%emt 0:00:32]} 35. Rxe1 {[%emt 0:00:06] Intending c7 and mate.} Qe5 {[%emt 0:00:04]} 36. Rg1 {[%emt 0:01:30] White wants to mate with c7.} Re4 {[%emt 0:03:02]} 37. c7 {[%emt 0:00:26]} Re1 {[%emt 0:00:05]} 38. Nf3 {[%emt 0:00:19] What a bad dream for Black.  Weighted Error Value: White=0.34/Black=0.35} (38. c8=Q $2 {gets mated.} Rxg1+ 39. Kxg1 Qe1#) 1-0

[Event "Kvika Banki League Iceland 2022-23"]
[Site "Reykjavik"]
[Date "2022.10.15"]
[Round "4.1"]
[White "Lomasov, Semyon"]
[Black "Dziuba, Marcin"]
[Result "1-0"]
[ECO "B62"]
[WhiteElo "2541"]
[BlackElo "2569"]
[Annotator "TA"]
[PlyCount "105"]
[EventDate "2022.10.13"]
[EventType "team-tourn"]
[EventCountry "ISL"]
[SourceTitle "playchess.com"]
[Source "ChessBase"]
[SourceQuality "1"]
[TimeControl "5400+30"]

{[%evp 12,105,42,28,37,23,54,44,47,42,51,33,55,49,50,49,40,42,66,70,61,68,62,55,96,78,84,95,88,75,99,0,66,41,54,25,130,130,135,118,132,131,137,129,135,121,131,133,132,136,140,129,134,135,132,111,125,107,123,126,124,123,110,107,115,109,120,122,112,109,114,127,106,75,93,106,88,80,48,63,320,321,329,313,322,323,316,313,285,269,420,395,5047,4602,1901,1728]} 1. e4 {[%emt 0:00:46]} c5 {[%emt 0:00:44]} 2. Nf3 {[%emt 0:00:11]} d6 {[%emt 0:00:04]} 3. d4 {[%emt 0:00:11]} cxd4 {[%emt 0:00:05]} 4. Nxd4 {[%emt 0:00:03]} Nf6 {[%emt 0:00:06]} 5. Nc3 {[%emt 0:00:06]} Nc6 {[%emt 0:00:03]} 6. Bg5 {[%emt 0:01:46]} e6 {[%emt 0:00:16]} 7. Qd3 {[%emt 0:01:17]} Be7 {[%emt 0:09:52] 7...Bd7 is the modern continuation. B62: Sicilian: Richter-Rauzer: 6...e6: Unusual White 7th moves.} 8. O-O-O {[%emt 0:02:08]} a6 {[%emt 0:01:50]} 9. Nxc6 {[%emt 0:02:08]} bxc6 {[%emt 0:00:06] White is slightly better.} 10. Qg3 {[%emt 0:00:39]} e5 {[%emt 0:09:05]} 11. f4 {[%emt 0:02:52] [#]} Nh5 $146 {[%emt 0:34:34]} ({Predecessor:} 11... Qa5 12. fxe5 Nh5 13. Qh4 Bxg5+ 14. Qxg5 Qxe5 15. Qxe5+ dxe5 16. Rd6 Bd7 17. Bc4 Ke7 {1-0 (56) Nabaty,T (2658)-Westerberg,J (2546) Batumi 2019}) 12. Bxe7 {[%emt 0:01:34]} Qxe7 {[%emt 0:00:10]} 13. Qd3 {[%emt 0:00:06]} Nxf4 {[%emt 0:00:13]} 14. Qxd6 {[%emt 0:00:09]} Qxd6 {[%emt 0:00:19]} 15. Rxd6 {[%emt 0:00:06]} Bd7 {[%emt 0:00:37]} 16. Bc4 {[%emt 0:04:43]} Ke7 {[%emt 0:04:15]} 17. Rhd1 {[%emt 0:01:14]} Be8 {[%emt 0:03:15]} 18. g3 {[%emt 0:03:14]} Nh5 {[%emt 0:00:52]} (18... Nd5 $2 19. Nxd5+ cxd5 20. R1xd5 $18 (20. R6xd5 f6 $18)) 19. Na4 {[%emt 0:13:39]} Nf6 {[%emt 0:02:02]} 20. Nc5 {[%emt 0:02:21]} a5 {[%emt 0:00:36]} 21. a4 {[%emt 0:16:14] White has more active pieces. The black rooks are badly placed.} (21. R6d3 $16) 21... h5 {[%emt 0:02:55]} (21... Ra7 $11) 22. R6d3 $14 {[%emt 0:07:26]} h4 {[%emt 0:03:30]} 23. g4 {[%emt 0:05:48] Black must now prevent g5.} Nxg4 {[%emt 0:09:31] [#]} (23... Ra7 $1 $11 {keeps the balance.}) 24. Rg1 $1 $36 {[%emt 0:00:23][%mdl 2048] White is on the roll.} Nf6 {[%emt 0:00:01]} 25. Rxg7 {[%emt 0:00:20]} Rh6 {[%emt 0:00:03]} 26. Rg5 {[%emt 0:04:01]} Rh5 {[%emt 0:03:45]} 27. Rxh5 {[%emt 0:01:04]} Nxh5 {[%emt 0:00:01]} 28. Rh3 {[%emt 0:00:09]} Kd6 {[%emt 0:08:43]} 29. Nd3 {[%emt 0:03:24]} f5 {[%emt 0:01:43]} 30. exf5 {[%emt 0:00:07]} e4 {[%emt 0:03:17]} 31. Nf2 {[%emt 0:00:24]} ({And not} 31. Rxh4 exd3 32. Bxd3 Bf7 $17) 31... Ke5 {[%emt 0:00:41]} 32. Rxh4 {[%emt 0:05:22]} Nf6 {[%emt 0:02:18]} 33. Ng4+ {[%emt 0:03:28]} Nxg4 {[%emt 0:00:12]} 34. Rxg4 {[%emt 0:00:02][%cal Of5f6][%mdl 4096] Endgame KRB-KRB} Bh5 {[%emt 0:01:01]} 35. Rh4 {[%emt 0:01:38]} Bf3 {[%emt 0:00:16] [#]} 36. Kd2 $1 {[%emt 0:00:03] Hoping for Ke3.} Rd8+ {[%emt 0:00:32]} 37. Ke3 {[%emt 0:00:08] And now Rh6 would win.} Rd1 {[%emt 0:00:04]} 38. f6 {[%emt 0:05:02]} Kxf6 {[%emt 0:00:01]} 39. Rh6+ {[%emt 0:00:30]} Ke5 {[%emt 0:00:00]} 40. Re6+ {[%emt 0:00:09]} Kf5 {[%emt 0:00:05]} 41. Rxc6 {[%emt 0:00:06]} Re1+ {[%emt 0:00:12]} 42. Kf2 {[%emt 0:01:30]} Rh1 {[%emt 0:00:15]} 43. Rc8 {[%emt 0:09:54]} Kf4 {[%emt 0:01:15][%csl Gf4][%cal Re4e3]} (43... Rxh2+ $2 44. Ke3 $18) 44. Rf8+ {[%emt 0:00:01]} Ke5 {[%emt 0:00:03]} 45. Ke3 {[%emt 0:00:31] Threatens to win with Re8+.} Rxh2 $2 {[%emt 0:00:50][%mdl 8192] This costs Black the game.} (45... Re1+ $1 $14 46. Kd2 Rh1) 46. Ra8 $18 {[%emt 0:00:09]} Rxc2 {[%emt 0:00:16]} 47. Rxa5+ {[%emt 0:00:02]} Kd6 {[%emt 0:00:23]} 48. b3 {[%emt 0:00:12]} Rc1 {[%emt 0:00:12]} 49. Rd5+ {[%emt 0:03:04]} Kc6 {[%emt 0:00:43]} 50. Rf5 {[%emt 0:00:49] a5 is the strong threat.} Rb1 {[%emt 0:03:05]} (50... Rd1 $142 51. a5 Re1+ 52. Kd2 Rd1+ 53. Kc3 Bg2) 51. a5 {[%emt 0:02:36]} Bd1 $2 {[%emt 0:00:02]} (51... Bg4) 52. Rf1 {[%emt 0:00:39]} Kc5 {[%emt 0:00:58]} 53. Kd2 {[%emt 0:01:06] Weighted Error Value: White=0.07 (flawless) /Black=0.18 (very precise)} 1-0

[Event "Kvika Banki League Iceland 2022-23"]
[Site "Reykjavik"]
[Date "2022.10.15"]
[Round "4.2"]
[White "Pakleza, Zbigniew"]
[Black "Danielsen, Henrik"]
[Result "1/2-1/2"]
[ECO "D10"]
[WhiteElo "2496"]
[BlackElo "2521"]
[Annotator "TA"]
[PlyCount "37"]
[EventDate "2022.10.13"]
[EventType "team-tourn"]
[EventCountry "ISL"]
[SourceTitle "playchess.com"]
[Source "ChessBase"]
[SourceQuality "1"]
[TimeControl "5400+30"]

{[%evp 16,23,16,8,13,0,3,0,11,0]} 1. d4 {[%emt 0:00:01]} d5 {[%emt 0:00:15]} 2. c4 {[%emt 0:00:47]} c6 {[%emt 0:01:24]} 3. cxd5 {[%emt 0:00:25]} cxd5 {[%emt 0:00:11]} 4. Nc3 {[%emt 0:00:01]} Nf6 {[%emt 0:01:18]} 5. Bf4 {[%emt 0:00:16]} Nc6 {[%emt 0:01:19]} 6. e3 {[%emt 0:00:06]} a6 {[%emt 0:01:08]} 7. Bd3 {[%emt 0:00:15]} Bg4 {[%emt 0:00:23]} 8. f3 {[%emt 0:00:37]} Bh5 {[%emt 0:02:07]} 9. Nge2 {[%emt 0:00:07] The position is equal.} Bg6 {[%emt 0:00:59] D10: Slav Defence: 3 cxd5 (without early Nf3) and 3 Nc3.} 10. O-O {[%emt 0:01:21]} e6 {[%emt 0:00:39]} 11. Rc1 {[%emt 0:01:02]} Bxd3 {[%emt 0:06:08]} 12. Qxd3 {[%emt 0:00:07] [#] An uneventful encounter.  Weighted Error Value: White=0.05 (flawless) /Black=0.04 (flawless)} {Predecessor:} Be7 $146 13. Na4 Nh5 14. Be5 f6 15. Bf4 O-O 16. Qb3 Ra7 17. Nc5 Bxc5 18. dxc5 Nxf4 19. Nxf4 {½-½ (32) Pedersen,N (2369)-Lindgren,P (2356) Skanderborg 2021} 1/2-1/2

[Event "Kvika Banki League Iceland 2022-23"]
[Site "Reykjavik"]
[Date "2022.10.15"]
[Round "4.3"]
[White "Ahlander, Bjorn"]
[Black "Hjartarson, Johann"]
[Result "1/2-1/2"]
[ECO "E38"]
[WhiteElo "2406"]
[BlackElo "2468"]
[Annotator "TA"]
[PlyCount "98"]
[EventDate "2022.10.13"]
[EventType "team-tourn"]
[EventCountry "ISL"]
[SourceTitle "playchess.com"]
[Source "ChessBase"]
[SourceQuality "1"]
[TimeControl "5400+30"]

{[%evp 25,98,41,43,27,44,41,44,43,46,40,43,10,17,12,30,22,23,17,26,29,27,10,18,15,18,16,35,12,35,29,44,39,37,22,30,27,56,46,53,48,74,14,12,8,10,10,12,0,0,0,26,23,24,6,6,16,33,29,41,42,101,37,24,0,79,50,50,47,45,0,0,0,0,0,0]} 1. d4 {[%emt 0:00:04]} Nf6 {[%emt 0:00:11]} 2. c4 {[%emt 0:00:04]} e6 {[%emt 0:00:10]} 3. Nc3 {[%emt 0:00:08]} Bb4 {[%emt 0:00:07]} 4. Qc2 {[%emt 0:00:08]} c5 {[%emt 0:00:13]} 5. dxc5 {[%emt 0:00:06]} Qc7 {[%emt 0:00:08]} 6. Nf3 {[%emt 0:04:46]} Bxc5 {[%emt 0:01:24]} 7. Bg5 {[%emt 0:00:54]} Be7 {[%emt 0:01:17]} 8. e4 {[%emt 0:00:29]} d6 {[%emt 0:02:20]} 9. Be2 {[%emt 0:00:03]} a6 {[%emt 0:00:26]} 10. O-O {[%emt 0:00:05]} Nbd7 {[%emt 0:01:56]} 11. Rfd1 {[%emt 0:16:52]} b6 {[%emt 0:06:00]} 12. Rac1 {[%emt 0:00:03]} Bb7 {[%emt 0:00:20]} 13. Nd4 {[%emt 0:00:38]} O-O {[%emt 0:03:09]} 14. f3 {[%emt 0:04:10] [#] E38: Nimzo-Indian: Classical: 4...c5.} Rac8 $146 {[%emt 0:00:30]} ({Predecessor:} 14... Rfe8 15. Qd2 Rac8 16. Bf1 Qb8 17. Kh1 Bd8 18. Nc2 Be7 19. Nd4 h6 20. Be3 {½-½ (21) Kaposztas,M (2305)-Molnar,P (2293) Hungary 2006}) 15. Be3 {[%emt 0:00:51]} Rfe8 {[%emt 0:01:27]} 16. Bf2 {[%emt 0:02:16] White is slightly better.} Bf8 {[%emt 0:01:00]} 17. Bf1 {[%emt 0:00:29]} Qb8 {[%emt 0:01:11]} 18. Qb3 {[%emt 0:02:16]} g6 {[%emt 0:06:14]} 19. a3 {[%emt 0:03:08]} Ba8 {[%emt 0:02:53]} 20. Kh1 {[%emt 0:02:52]} Ne5 {[%emt 0:06:44]} 21. Na4 {[%emt 0:04:29]} Nfd7 {[%emt 0:00:42]} 22. Qa2 {[%emt 0:01:40]} Rc7 {[%emt 0:06:28]} 23. b4 {[%emt 0:05:00]} Rec8 {[%emt 0:01:23][%cal Ob6b5]} 24. Be3 {[%emt 0:00:31]} Bb7 {[%emt 0:10:23][%cal Od6d5]} 25. Qb3 {[%emt 0:03:47]} Be7 {[%emt 0:06:21]} 26. Rc2 {[%emt 0:04:15]} g5 {[%emt 0:01:28]} 27. Rdc1 {[%emt 0:01:01]} Ba8 {[%emt 0:01:15]} 28. h3 {[%emt 0:03:35]} h6 {[%emt 0:02:38]} 29. Qa2 {[%emt 0:04:40]} Bf6 {[%emt 0:03:55]} 30. Rc3 {[%emt 0:03:17]} Ng6 {[%emt 0:02:03]} 31. Qf2 {[%emt 0:05:25]} Be5 {[%emt 0:00:31]} 32. R3c2 {[%emt 0:01:01]} Bf4 {[%emt 0:04:40]} 33. Ne2 {[%emt 0:02:47]} (33. Bxf4 $16 gxf4 34. g3) 33... Bxe3 $11 {[%emt 0:02:26]} 34. Qxe3 {[%emt 0:00:04]} b5 {[%emt 0:00:43]} 35. Nb2 {[%emt 0:00:04][%cal Ba4b2,Bb2c4,Bc4e3][%mdl 32]} Nde5 {[%emt 0:00:29][%cal Re5c4]} 36. Qd4 {[%emt 0:05:52]} bxc4 {[%emt 0:02:02]} 37. Nxc4 {[%emt 0:05:49]} Rc6 {[%emt 0:06:01]} 38. Ne3 {[%emt 0:01:55]} Rxc2 {[%emt 0:02:12]} 39. Rxc2 {[%emt 0:00:05]} Rxc2 {[%emt 0:00:12]} 40. Nxc2 {[%emt 0:00:04]} d5 {[%emt 0:00:41]} 41. Nc3 {[%emt 0:03:14][%cal Re4d5]} Nf4 {[%emt 0:07:30]} 42. exd5 {[%emt 0:06:22]} Nxd5 {[%emt 0:01:05]} 43. Nxd5 {[%emt 0:02:15]} ({Better is} 43. Bxa6 $16 Ne7 44. Ne2) 43... Bxd5 $14 {[%emt 0:00:04]} 44. Ne3 {[%emt 0:02:14]} Bb7 {[%emt 0:00:26]} (44... Nxf3 $1 $11 45. gxf3 Bxf3+ 46. Kg1 Qg3+ 47. Bg2 Bxg2 48. Nxg2 Qxh3) 45. Ng4 {[%emt 0:01:12] White is more active.} Nxg4 {[%emt 0:00:37]} 46. hxg4 {[%emt 0:00:04]} Qc7 {[%emt 0:01:14]} 47. Qf6 {[%emt 0:01:05]} Bd5 {[%emt 0:04:16] [#] ...Qc1 is the strong threat. The position is equal.} 48. Qxh6 {[%emt 0:01:07]} Qc1 {[%emt 0:00:11][%csl LRa3,LRf1]} 49. Kh2 {[%emt 0:00:42]} Qxf1 {[%emt 0:01:12] Weighted Error Value: White=0.12 (very precise) /Black=0.09 (flawless)} 1/2-1/2